bitfinex-derivatives/quotes_BNBF0:USTF0_20250524
["timestamp","ask_amount","ask_price","bid_price","bid_amount"]
[1748127092002,2.1778741,669.36,669.33,1.111]
[1748127092307,1.00405526,669.36,669.33,1.111]
[1748127092608,1.46941097,669.79,669.33,1.111]
[1748127092804,1.72474284,669.78,669.33,1.111]
[1748127093006,1.72474284,669.77,669.33,1.111]
[1748127093210,1.72474284,669.76,669.33,1.111]
[1748127093408,1.72474284,669.75,669.33,1.111]
[1748127093608,1.72474284,669.74,669.33,1.111]
[1748127093808,1.72474284,669.73,669.33,1.111]
[1748127094005,2.7287488,669.72,669.33,1.111]
[1748127094205,1.72473193,669.71,669.33,1.111]
[1748127094505,1.72473193,669.7,669.33,1.111]
[1748127094708,2.72873789,669.69,669.33,1.111]
[1748127094909,1.72473193,669.68,669.33,1.111]
[1748127095109,1.72473193,669.67,669.33,1.111]
[1748127095308,2.72873789,669.66,669.33,1.111]
[1748127095511,2.72869601,669.65,669.33,1.111]
[1748127095711,1.72469005,669.64,669.33,1.111]
[1748127096010,1.7243642,669.63,669.33,1.111]
[1748127096210,1.7243642,669.62,669.33,1.111]
[1748127096412,1.00400596,669.65,669.33,1.111]
[1748127096912,0.55081352,669.64,669.33,1.111]
[1748127097107,1.00400596,669.65,669.33,1.111]
[1748127097313,1.72427298,669.64,669.33,1.111]
[1748127097614,0.55080307,669.64,669.33,1.111]
[1748127097914,2.17749824,669.63,669.33,1.111]
[1748127098114,0.55080307,669.62,669.33,1.111]
[1748127098307,1.17349228,669.62,669.33,1.111]
[1748127098512,1.72433069,669.61,669.33,1.111]
[1748127098713,1.17349228,669.6,669.33,1.111]
[1748127099111,1.72436554,669.59,669.33,1.111]
[1748127099309,1.72436554,669.58,669.33,1.111]
[1748127099513,1.72437925,669.57,669.33,1.111]
[1748127099709,2.72838521,669.56,669.33,1.111]
[1748127099914,1.72437925,669.55,669.33,1.111]
[1748127100110,2.72838521,669.54,669.33,1.111]
[1748127100314,1.72437925,669.53,669.33,1.111]
[1748127100512,1.72444355,669.52,669.33,1.111]
[1748127100710,1.72444355,669.51,669.33,1.111]
[1748127100913,1.72444355,669.5,669.33,1.111]
[1748127101110,1.72444355,669.49,669.33,1.111]
[1748127101316,1.72444355,669.48,669.33,1.111]
[1748127101614,2.72844951,669.47,669.33,1.111]
[1748127101814,1.72444355,669.46,669.33,1.111]
[1748127102015,2.17759888,669.45,669.33,1.111]
[1748127102210,2.7284985,669.44,669.33,1.111]
[1748127102415,1.7244832,669.43,669.33,1.111]
[1748127102611,1.7244832,669.42,669.33,1.111]
[1748127102810,1.72444634,669.41,669.33,1.111]
[1748127103008,1.72444634,669.4,669.33,1.111]
[1748127103209,1.72444634,669.39,669.33,1.111]
[1748127103414,1.17355606,669.38,669.33,1.111]
[1748127103610,2.17756202,669.37,669.33,1.111]
[1748127103811,1.17355606,669.36,669.33,1.111]
[1748127104011,1.17355606,669.35,669.33,1.111]
[1748127104212,2.17756202,669.34,669.33,1.111]
[1748127110219,2.17785174,669.34,669.33,1.111]
[1748127113223,2.17785174,669.34,668.82,0.67816837]
[1748127113522,2.17785174,669.33,668.82,0.67816837]
[1748127113722,2.17785174,669.32,668.82,0.67816837]
[1748127113921,1.17433597,669.31,668.82,0.67816837]
[1748127114118,2.17834193,669.3,668.82,0.67816837]
[1748127114325,1.17433597,669.29,668.82,0.67816837]
[1748127114518,1.17433597,669.28,668.82,0.67816837]
[1748127114717,1.17433597,669.27,668.82,0.67816837]
[1748127115016,1.17433597,669.26,668.86,0.67816837]
[1748127115217,1.17481309,669.25,668.86,0.67816837]
[1748127115418,1.00400596,669.26,668.86,0.67816837]
[1748127115620,1.1748131,669.25,668.98,0.47533633]
[1748127115817,1.46941097,669.71,668.98,0.47533633]
[1748127116021,3.02893798,669.7,668.98,0.47533633]
[1748127116222,2.02486953,669.69,668.98,0.47533633]
[1748127116421,2.02487399,669.68,668.98,0.47533633]
[1748127116616,1.72622389,669.67,668.99,1.023]
[1748127116820,2.7302968,669.66,668.99,1.023]
[1748127117023,1.72622389,669.65,668.99,1.023]
[1748127117226,2.7302968,669.64,668.99,1.023]
[1748127117523,1.72714707,669.63,668.99,1.023]
[1748127117722,2.73121998,669.62,668.99,1.023]
[1748127117923,1.72714707,669.61,668.99,1.023]
[1748127118120,1.72714707,669.6,668.99,1.023]
[1748127118322,1.72714707,669.59,668.99,1.023]
[1748127118519,2.73121998,669.58,668.99,1.023]
[1748127118721,1.72714707,669.57,668.99,1.023]
[1748127118924,1.72714707,669.56,668.99,1.023]
[1748127119123,2.73121998,669.55,668.99,1.023]
[1748127119323,1.72714707,669.54,669.08,0.47533633]
[1748127119524,2.73152839,669.53,669.08,0.47533633]
[1748127119723,1.72745548,669.52,669.08,0.47533633]
[1748127119923,2.73152839,669.51,669.08,0.47533633]
[1748127120121,1.72745548,669.5,669.08,0.47533633]
[1748127120322,1.72745548,669.49,669.08,0.47533633]
[1748127120524,2.73152839,669.48,669.08,0.47533633]
[1748127120724,1.72745548,669.47,669.08,0.47533633]
[1748127120922,1.72745548,669.46,669.08,0.47533633]
[1748127121123,2.73223455,669.45,669.08,0.47533633]
[1748127121326,1.72816164,669.44,669.08,0.47533633]
[1748127121529,2.73223455,669.43,669.08,0.47533633]
[1748127121828,1.72816164,669.42,669.08,0.47533633]
[1748127122024,2.73223455,669.41,669.08,0.47533633]
[1748127122229,1.72816164,669.4,669.08,0.47533633]
[1748127122425,1.72863306,669.39,669.07,0.47533633]
[1748127122624,1.72863306,669.38,669.07,0.47533633]
[1748127122823,1.72863306,669.37,669.07,0.47533633]
[1748127123025,2.73270597,669.36,669.07,0.47533633]
[1748127123329,1.72863306,669.35,669.07,0.47533633]
[1748127123530,2.73270597,669.34,669.07,0.47533633]
[1748127123729,1.72863306,669.33,669.07,0.47533633]
[1748127123929,1.00407291,669.34,669.07,0.47533633]
[1748127123930,1.72885016,669.32,669.07,0.47533633]
[1748127124133,2.73292307,669.31,669.07,0.47533633]
[1748127124335,1.72936706,669.3,669.07,0.47533633]
[1748127124534,2.73343997,669.29,669.07,0.47533633]
[1748127124735,1.1769426,669.28,669.11,0.47533633]
[1748127125030,1.1769426,669.27,669.11,0.47533633]
[1748127125233,1.1769426,669.26,669.11,0.47533633]
[1748127125435,1.1769426,669.25,669.11,0.47533633]
[1748127125733,1.1769426,669.24,669.11,0.47533633]
[1748127125935,1.1769426,669.23,669.11,0.47533633]
[1748127126134,1.17736675,669.22,669.11,0.47533633]
[1748127126434,2.18143966,669.21,668.99,1.023]
[1748127126635,2.18143966,669.2,668.99,1.023]
[1748127126831,1.17736675,669.19,668.99,1.023]
[1748127127033,1.17736675,669.18,668.99,1.023]
[1748127127236,2.18143966,669.17,668.99,1.023]
[1748127127530,1.17736675,669.16,668.99,1.023]
[1748127127730,2.18143966,669.15,668.99,1.023]
[1748127127929,1.00407291,669.15,668.99,1.023]
[1748127128129,1.17958735,669.14,668.99,1.023]
[1748127128334,1.00407291,669.15,668.99,1.023]
[1748127128534,1.17968873,669.14,668.99,1.023]
[1748127128734,1.46941097,669.59,668.99,1.023]
[1748127128930,1.73271734,669.58,668.99,1.023]
[1748127129130,2.74028103,669.57,668.99,1.023]
[1748127129335,1.73271734,669.56,668.99,1.023]
[1748127129631,1.73271734,669.55,668.99,1.023]
[1748127129836,1.73275685,669.54,668.99,1.023]
[1748127130136,2.74032054,669.53,668.99,1.023]
[1748127130435,1.73275685,669.52,668.99,1.023]
[1748127130635,1.73275685,669.51,668.99,1.023]
[1748127130836,2.74032054,669.5,668.99,1.023]
[1748127131038,1.73275685,669.49,668.99,1.023]
[1748127131236,1.73275685,669.48,668.99,1.023]
[1748127131437,1.73275685,669.47,668.99,1.023]
[1748127131638,1.73275685,669.46,668.99,1.023]
[1748127131938,1.73275685,669.45,668.99,1.023]
[1748127132139,1.73275685,669.44,668.99,1.023]
[1748127132439,2.74032054,669.43,668.99,1.023]
[1748127132639,2.74032054,669.42,668.99,1.023]
[1748127132841,1.73275685,669.41,668.99,1.023]
[1748127133039,2.74032054,669.4,668.99,1.023]
[1748127133236,1.73275685,669.39,668.99,1.023]
[1748127133435,1.73275685,669.38,668.99,1.023]
[1748127133637,1.73275685,669.37,668.99,1.023]
[1748127133836,2.74032054,669.36,668.99,1.023]
[1748127134037,1.73275685,669.35,668.99,1.023]
[1748127134239,2.74032054,669.34,668.99,1.023]
[1748127134439,1.73275685,669.33,668.99,1.023]
[1748127134737,1.73275685,669.32,668.99,1.023]
[1748127134937,2.74032054,669.31,668.99,1.023]
[1748127135141,1.73275685,669.3,668.99,1.023]
[1748127135337,1.73269254,669.29,668.99,1.023]
[1748127135545,1.73269254,669.28,668.99,1.023]
[1748127135742,2.74025623,669.27,668.99,1.023]
[1748127135943,1.73269254,669.26,668.99,1.023]
[1748127136239,1.73269254,669.25,668.99,1.023]
[1748127136440,1.73269254,669.24,668.99,1.023]
[1748127136644,2.74025623,669.23,668.99,1.023]
[1748127136844,1.73269254,669.22,668.99,1.023]
[1748127137044,1.73269254,669.21,668.99,1.023]
[1748127137347,2.74025623,669.2,668.99,1.023]
[1748127137545,1.73269254,669.19,668.99,1.023]
[1748127137842,2.74025623,669.18,668.99,1.023]
[1748127138046,1.73269254,669.17,668.99,1.023]
[1748127138250,2.18717638,669.16,668.99,1.023]
[1748127138446,1.17961269,669.15,668.99,1.023]
[1748127138645,2.18717638,669.14,668.99,1.023]
[1748127138848,1.17961269,669.13,668.99,1.023]
[1748127139044,1.17961269,669.12,668.99,1.023]
[1748127139243,2.18717638,669.11,668.99,1.023]
[1748127139447,1.17961269,669.1,668.99,1.023]
[1748127139645,1.17961269,669.09,668.99,1.023]
[1748127139851,2.18717638,669.08,668.99,1.023]
[1748127140051,1.00756369,669.08,668.99,1.023]
[1748127140548,1.46941097,669.51,668.99,1.023]
[1748127140846,2.18585645,669.5,668.99,1.023]
[1748127141051,1.73180493,669.49,668.99,1.023]
[1748127141248,1.73180493,669.48,668.99,1.023]
[1748127141451,2.73866509,669.47,668.99,1.023]
[1748127141652,1.73180493,669.46,668.99,1.023]
[1748127141848,1.73180493,669.45,668.99,1.023]
[1748127142054,2.73866509,669.44,668.99,1.023]
[1748127142254,1.73180493,669.43,668.99,1.023]
[1748127142454,2.73866509,669.42,668.99,1.023]
[1748127142749,1.73180493,669.41,668.99,1.023]
[1748127142954,2.73866509,669.4,668.99,1.023]
[1748127143249,1.73180493,669.39,668.99,1.023]
[1748127143454,1.73180493,669.38,668.99,1.023]
[1748127143655,2.73866509,669.37,668.99,1.023]
[1748127143856,1.73180493,669.36,668.99,1.023]
[1748127144056,1.73180493,669.35,668.99,1.023]
[1748127144351,1.73157708,669.34,668.99,1.023]
[1748127144550,2.73843724,669.33,668.99,1.023]
[1748127144749,1.73154488,669.32,668.99,1.023]
[1748127144956,1.73154488,669.31,668.99,1.023]
[1748127145150,2.73840504,669.3,668.99,1.023]
[1748127145355,1.73154488,669.29,668.99,1.023]
[1748127145553,1.73154488,669.28,669.0,0.47533633]
[1748127145754,2.73840504,669.27,669.0,0.47533633]
[1748127145957,1.73154488,669.26,669.0,0.47533633]
[1748127146255,1.73154488,669.25,669.0,0.47533633]
[1748127146450,2.73831203,669.24,669.0,0.47533633]
[1748127146650,1.73145187,669.23,669.0,0.47533633]
[1748127146854,2.73831203,669.22,669.0,0.47533633]
[1748127147057,1.73145187,669.21,668.96,0.47533633]
[1748127147249,1.73145187,669.2,668.96,0.47533633]
[1748127147454,1.73145187,669.19,668.96,0.47533633]
[1748127147650,2.18561805,669.18,668.96,0.47533633]
[1748127147954,1.17875789,669.17,668.96,0.47533633]
[1748127148154,1.17875789,669.16,668.96,0.47533633]
[1748127148351,1.17875789,669.15,668.96,0.47533633]
[1748127148558,2.18561805,669.14,668.96,0.47533633]
[1748127148757,1.17875789,669.13,668.96,0.47533633]
[1748127148956,1.17875789,669.12,668.96,0.47533633]
[1748127149155,1.17875789,669.11,668.96,0.47533633]
[1748127149356,1.17875789,669.1,668.96,0.47533633]
[1748127149557,1.17875789,669.09,668.96,0.47533633]
[1748127149758,1.00686016,669.12,668.96,0.47533633]
[1748127149957,2.1856679,669.11,668.96,0.47533633]
[1748127150159,1.17886094,669.1,668.97,1.073]
[1748127150353,1.17886094,669.09,668.97,1.073]
[1748127150558,1.17886094,669.08,668.97,1.073]
[1748127150753,1.00686016,669.09,669.01,0.47533633]
[1748127151058,1.17886461,669.08,669.01,0.47533633]
[1748127151253,1.46941097,669.49,669.01,0.47533633]
[1748127151553,2.73846053,669.48,669.01,0.47533633]
[1748127151757,2.73846053,669.47,669.01,0.47533633]
[1748127151959,1.7315438,669.46,669.01,0.47533633]
[1748127152158,1.7315438,669.45,669.01,0.47533633]
[1748127152355,2.73833372,669.44,669.02,0.47533633]
[1748127152555,1.7315438,669.43,669.02,0.47533633]
[1748127152756,1.7315438,669.42,669.02,0.47533633]
[1748127152955,1.7315438,669.41,669.02,0.47533633]
[1748127153155,2.73833372,669.4,669.02,0.47533633]
[1748127153354,1.7315438,669.39,669.02,0.47533633]
[1748127153561,1.7315438,669.38,669.02,0.47533633]
[1748127153753,1.00678992,669.4,669.02,0.47533633]
[1748127153754,2.73833372,669.37,669.02,0.47533633]
[1748127153954,1.73174999,669.36,669.02,0.47533633]
[1748127154159,1.73174999,669.35,669.03,0.47533633]
[1748127154353,1.73174999,669.34,669.03,0.47533633]
[1748127154557,2.73853991,669.33,669.03,0.47533633]
[1748127154758,1.73174999,669.32,669.03,0.47533633]
[1748127155059,2.73853991,669.31,669.03,0.47533633]
[1748127155255,1.73174999,669.3,669.03,0.47533633]
[1748127155455,1.73174999,669.29,669.03,0.47533633]
[1748127155660,2.73853991,669.28,669.03,0.47533633]
[1748127155857,1.73174999,669.27,669.03,0.47533633]
[1748127156060,1.73174999,669.26,669.03,0.47533633]
[1748127156256,1.73174999,669.25,669.03,0.47533633]
[1748127156560,1.73174999,669.24,669.03,0.47533633]
[1748127156760,1.73174999,669.23,669.03,0.47533633]
[1748127156961,2.73853991,669.22,669.03,0.47533633]
[1748127157160,1.73174999,669.21,669.03,0.47533633]
[1748127157360,2.73853991,669.2,669.03,0.47533633]
[1748127157561,1.73215852,669.19,669.03,0.47533633]
[1748127157763,1.73215852,669.18,669.03,0.47533633]
[1748127157957,2.73894844,669.17,669.03,0.47533633]
[1748127158262,2.18602898,669.16,669.03,0.47533633]
[1748127158463,2.18602898,669.15,669.03,0.47533633]
[1748127158665,2.18602898,669.14,669.03,0.47533633]
[1748127158860,1.17923906,669.13,669.03,0.47533633]
[1748127159059,1.17923906,669.12,669.03,0.47533633]
[1748127159263,1.17923906,669.11,669.04,0.47533633]
[1748127159562,1.17959523,669.1,669.04,0.47533633]
[1748127159761,1.17959523,669.09,669.04,0.47533633]
[1748127159963,2.18638515,669.08,669.04,0.47533633]
[1748127160264,1.46941097,669.54,669.04,0.47533633]
[1748127160265,2.18638515,669.07,669.04,0.47533633]
[1748127160462,1.17983542,669.06,669.04,0.47533633]
[1748127160762,1.00678992,669.07,669.04,0.47533633]
[1748127160958,1.00678992,669.06,668.97,1.073]
[1748127161158,1.46941097,669.54,668.97,1.073]
[1748127161463,1.73326398,669.53,668.97,1.073]
[1748127161657,2.74129305,669.52,668.97,1.073]
[1748127161858,1.73326398,669.51,668.97,1.073]
[1748127162061,1.73326398,669.5,668.97,1.073]
[1748127162258,1.73326398,669.49,668.97,1.073]
[1748127162463,2.74129305,669.48,668.97,1.073]
[1748127162657,1.73326398,669.47,668.97,1.073]
[1748127162863,1.73326398,669.46,668.97,1.073]
[1748127163059,1.73326398,669.45,668.97,1.073]
[1748127163359,2.74186586,669.44,668.97,1.073]
[1748127163565,1.73383679,669.43,668.97,1.073]
[1748127163766,2.74186586,669.42,668.97,1.073]
[1748127163963,1.73383679,669.41,668.97,1.073]
[1748127164160,1.73383679,669.4,668.97,1.073]
[1748127164460,2.74186586,669.39,668.97,1.073]
[1748127164765,2.74186586,669.38,668.97,1.073]
[1748127164965,2.74186586,669.37,668.97,1.073]
[1748127165167,1.73380698,669.36,668.97,1.073]
[1748127165362,1.73380698,669.35,668.97,1.073]
[1748127165561,2.74183605,669.34,668.97,1.073]
[1748127165761,1.73380698,669.33,668.97,1.073]
[1748127165966,2.74183605,669.32,668.97,1.073]
[1748127166166,1.73380698,669.31,668.97,1.073]
[1748127166366,1.73380698,669.3,668.97,1.073]
[1748127166566,1.73380698,669.29,668.97,1.073]
[1748127166766,1.73380698,669.28,668.97,1.073]
[1748127166966,1.73380698,669.27,668.97,1.073]
[1748127167266,2.74183605,669.26,668.97,1.073]
[1748127167467,1.73380698,669.25,668.97,1.073]
[1748127167668,2.74183605,669.24,668.97,1.073]
[1748127167968,2.74183605,669.23,668.97,1.073]
[1748127168168,2.74183605,669.22,668.97,1.073]
[1748127168369,1.73380698,669.21,668.97,1.073]
[1748127168569,1.73380698,669.2,668.97,1.073]
[1748127168770,1.73359628,669.19,668.97,1.073]
[1748127169066,1.73359628,669.18,668.97,1.073]
[1748127169270,2.74162535,669.17,668.97,1.073]
[1748127169466,1.73359628,669.16,668.97,1.073]
[1748127169668,1.73359628,669.15,668.97,1.073]
[1748127169969,2.18826725,669.14,668.97,1.073]
[1748127170168,1.18023818,669.13,668.97,1.073]
[1748127170368,2.18826725,669.12,668.97,1.073]
[1748127170565,1.18023818,669.11,668.97,1.073]
[1748127170770,2.18832428,669.1,668.97,1.073]
[1748127170969,1.18029521,669.09,668.97,1.073]
[1748127171164,1.18029521,669.08,668.97,1.073]
[1748127171368,1.18029521,669.07,668.97,1.073]
[1748127171565,2.18832428,669.06,668.97,1.073]
[1748127171771,2.18832428,669.05,668.97,1.073]
[1748127171973,1.46941097,669.51,668.97,1.073]
[1748127172172,1.73368541,669.5,668.97,1.073]
[1748127172371,2.74193794,669.49,668.97,1.073]
[1748127172566,1.73368541,669.48,668.97,1.073]
[1748127172769,1.73368541,669.47,668.97,1.073]
[1748127172966,2.74193794,669.46,668.97,1.073]
[1748127173170,1.73368541,669.45,668.97,1.073]
[1748127173370,1.73368541,669.44,668.97,1.073]
[1748127173567,1.73368541,669.43,668.97,1.073]
[1748127173870,2.74193794,669.42,668.97,1.073]
[1748127174074,1.73368541,669.41,668.97,1.073]
[1748127174274,1.56163911,669.4,669.0,0.47533633]
[1748127174474,1.73398607,669.39,669.0,0.47533633]
[1748127174667,1.73398607,669.38,669.0,0.47533633]
[1748127174870,2.7422386,669.37,669.0,0.47533633]
[1748127175068,1.73398607,669.36,669.0,0.47533633]
[1748127175371,2.7422386,669.35,669.0,0.47533633]
[1748127175568,2.7422386,669.34,669.0,0.47533633]
[1748127175871,1.73398607,669.33,669.0,0.47533633]
[1748127176173,2.7422386,669.32,668.99,0.47533633]
[1748127176374,1.73398607,669.31,668.99,0.47533633]
[1748127176673,2.7422386,669.3,668.99,0.47533633]
[1748127176870,2.7422386,669.29,668.99,0.47533633]
[1748127177169,2.7422386,669.28,668.99,0.47533633]
[1748127177375,1.73398607,669.27,668.99,0.47533633]
[1748127177673,1.73398607,669.26,668.97,1.073]
[1748127177870,1.73327132,669.25,668.97,1.073]
[1748127178069,1.73315185,669.24,668.97,1.073]
[1748127178272,1.73315185,669.23,668.97,1.073]
[1748127178491,1.73315185,669.22,668.97,1.073]
[1748127178673,1.17988471,669.21,668.97,1.073]
[1748127178871,1.17988471,669.2,668.97,1.073]
[1748127179072,1.17988471,669.19,668.97,1.073]
[1748127179271,1.17988471,669.18,668.97,1.073]
[1748127179474,1.17988471,669.17,668.97,1.073]
[1748127179674,2.18813724,669.16,668.97,1.073]
[1748127179874,1.17988471,669.15,668.97,1.073]
[1748127180074,1.17988471,669.14,668.97,1.073]
[1748127180275,1.17988471,669.13,668.97,1.073]
[1748127180475,1.17988471,669.12,668.97,1.073]
[1748127180673,2.18813724,669.11,668.97,1.073]
[1748127180871,1.17988471,669.1,668.97,1.073]
[1748127181072,1.00825253,669.09,668.97,1.073]
[1748127181579,1.46941097,669.64,668.97,1.073]
[1748127181780,1.73157695,669.63,668.97,1.073]
[1748127181980,1.73157695,669.62,668.97,1.073]
[1748127182176,1.73157695,669.61,668.97,1.073]
[1748127182380,1.73157695,669.6,668.97,1.073]
[1748127182574,1.73157695,669.59,668.97,1.073]
[1748127182777,2.74079936,669.58,668.97,1.073]
[1748127182975,1.73157695,669.57,668.97,1.073]
[1748127183176,1.73157695,669.56,668.97,1.073]
[1748127183380,1.73157695,669.55,668.97,1.073]
[1748127183681,2.74079936,669.54,668.97,1.073]
[1748127183876,1.73157695,669.53,668.97,1.073]
[1748127184079,1.73157695,669.52,668.97,1.073]
[1748127184275,2.74079936,669.51,668.97,1.073]
[1748127184474,1.73157695,669.5,668.97,1.073]
[1748127184679,1.73157695,669.49,668.97,1.073]
[1748127184980,2.74079936,669.48,668.97,1.073]
[1748127185281,2.74079936,669.47,668.97,1.073]
[1748127185482,1.73167266,669.46,668.97,1.073]
[1748127185677,1.73167266,669.45,668.97,1.073]
[1748127185876,1.73167266,669.44,668.97,1.073]
[1748127186075,2.74089507,669.43,668.97,1.073]
[1748127186280,1.73167266,669.42,668.97,1.073]
[1748127186481,2.74089507,669.41,668.97,1.073]
[1748127186682,1.73168356,669.4,668.97,1.073]
[1748127186881,1.73168356,669.39,668.97,1.073]
[1748127187082,1.73168356,669.38,668.97,1.073]
[1748127187382,2.74090597,669.37,668.97,1.073]
[1748127187582,2.74090597,669.36,668.97,1.073]
[1748127187782,1.73168356,669.35,668.97,1.073]
[1748127187985,1.73168356,669.34,668.97,1.073]
[1748127188282,1.73168356,669.33,668.97,1.073]
[1748127188581,1.73168356,669.32,668.97,1.073]
[1748127188779,2.74090597,669.31,668.97,1.073]
[1748127188982,2.74090597,669.3,668.97,1.073]
[1748127189178,1.73168356,669.29,668.97,1.073]
[1748127189386,2.74090597,669.28,668.97,1.073]
[1748127189580,2.74090597,669.27,668.97,1.073]
[1748127189783,1.73168356,669.26,668.97,1.073]
[1748127189983,1.00922241,669.27,668.97,1.073]
[1748127189984,1.73168356,669.25,668.97,1.073]
[1748127190183,1.73168356,669.24,668.97,1.073]
[1748127190384,1.73168356,669.23,668.97,1.073]
[1748127190585,2.74090597,669.22,668.97,1.073]
[1748127190785,2.74090597,669.21,668.97,1.073]
[1748127190986,1.73168356,669.2,668.97,1.073]
[1748127191180,1.73168356,669.19,668.97,1.073]
[1748127191486,2.74090597,669.18,668.97,1.073]
[1748127191681,2.74090597,669.17,669.02,0.47533633]
[1748127191885,1.73168356,669.16,669.02,0.47533633]
[1748127192085,1.73168356,669.15,669.02,0.47533633]
[1748127192283,2.73942775,669.14,669.02,0.47533633]
[1748127192486,1.73020534,669.13,669.02,0.47533633]
[1748127192686,2.73942775,669.12,669.02,0.47533633]
[1748127192887,1.73020534,669.11,669.02,0.47533633]
[1748127193087,1.73020534,669.1,669.02,0.47533633]
[1748127193289,1.73020534,669.09,669.02,0.47533633]
[1748127193588,2.18702908,669.08,668.97,1.073]
[1748127193783,1.17780667,669.07,668.97,1.073]
[1748127193987,1.17780667,669.06,668.97,1.073]
[1748127194187,2.18702908,669.05,668.97,1.073]
[1748127194383,2.18702908,669.04,668.97,1.073]
[1748127194587,2.18702908,669.03,668.97,1.073]
[1748127194787,1.17780667,669.02,668.97,1.073]
[1748127195101,2.18702908,669.01,668.97,1.073]
[1748127195287,1.17780667,669.0,668.97,1.073]
[1748127195484,1.17768946,668.99,668.97,1.073]
[1748127195683,1.00922241,669.0,668.97,1.073]
[1748127195882,2.18690008,668.99,668.97,1.073]
[1748127196084,1.46941097,669.41,668.97,1.073]
[1748127196287,2.73578502,669.4,668.97,1.073]
[1748127196589,2.73578502,669.39,668.97,1.073]
[1748127196788,1.72990656,669.38,668.97,1.073]
[1748127196990,2.73576144,669.37,668.97,1.073]
[1748127197289,2.73576144,669.36,668.97,1.073]
[1748127197489,2.73576144,669.35,668.97,1.073]
[1748127197689,1.72988298,669.34,668.97,1.073]
[1748127197889,1.72988298,669.33,668.97,1.073]
[1748127198089,2.73576144,669.32,668.97,1.073]
[1748127198289,2.73571925,669.31,668.97,1.073]
[1748127198585,2.73571925,669.3,668.97,1.073]
[1748127198789,1.46941097,669.42,668.97,1.073]
[1748127198790,2.73571925,669.29,668.97,1.073]
[1748127199090,1.72984079,669.28,668.97,1.073]
[1748127199291,1.72984079,669.27,668.97,1.073]
[1748127199491,2.73571925,669.26,668.97,1.073]
[1748127199688,1.72984079,669.25,668.97,1.073]
[1748127199886,1.72984079,669.24,668.97,1.073]
[1748127200086,2.73569483,669.23,668.97,1.073]
[1748127200387,1.72981637,669.22,668.97,1.073]
[1748127200586,1.72981637,669.21,668.97,1.073]
[1748127200791,1.72981637,669.2,668.97,1.073]
[1748127200987,1.72981637,669.19,668.97,1.073]
[1748127201290,2.73569483,669.18,668.97,1.073]
[1748127201492,1.72981637,669.17,668.97,1.073]
[1748127201693,1.72981637,669.16,668.97,1.073]
[1748127201888,0.55212324,669.15,668.97,1.073]
[1748127202193,2.72155875,669.14,668.97,1.073]
[1748127202393,2.72155875,669.13,668.97,1.073]
[1748127202690,1.71568029,669.12,668.97,1.073]
[1748127202896,1.71568029,669.11,668.97,1.073]
[1748127203195,1.71568029,669.1,668.97,1.073]
[1748127203391,1.16355705,669.09,668.97,1.073]
[1748127203595,2.16943551,669.08,668.97,1.073]
[1748127203792,1.16355705,669.07,668.97,1.073]
[1748127203996,1.16355705,669.06,668.97,1.073]
[1748127204296,1.16355705,669.05,668.97,1.073]
[1748127204492,1.16355705,669.04,668.97,1.073]
[1748127204697,1.16355705,669.03,668.97,1.073]
[1748127204994,1.16355705,669.02,668.97,1.073]
[1748127205193,1.00587846,669.01,668.95,0.47533633]
[1748127205394,1.46941097,669.4,668.95,0.47533633]
[1748127205598,1.71544089,669.39,668.95,0.47533633]
[1748127205793,1.71544089,669.38,668.95,0.47533633]
[1748127205996,1.71544089,669.37,668.95,0.47533633]
[1748127206199,2.7213381,669.36,668.95,0.47533633]
[1748127206399,1.71544089,669.35,668.94,0.47533633]
[1748127206599,2.7213381,669.34,668.94,0.47533633]
[1748127206798,1.71544089,669.33,668.94,0.47533633]
[1748127206992,2.7213381,669.32,668.94,0.47533633]
[1748127207195,1.71544089,669.31,668.94,0.47533633]
[1748127207397,1.71544089,669.3,668.94,0.47533633]
[1748127207599,1.7153084,669.29,668.94,0.47533633]
[1748127207799,2.72120561,669.28,668.94,0.47533633]
[1748127208000,1.7153084,669.27,668.94,0.47533633]